Cogmind - Beta 16 *** ADVENTURER MODE // 2026.01.12 @ 13:14:24 Player: MrZloHex Result: Destroyed by G-47 Trooper with Particle Gun Performance ------------- Evolutions (2) 1000 Regions Visited (6) 1200 Robots Destroyed (63) 315 Value Destroyed (1703) 1703 Prototype IDs (0) 0 Alien Tech Used (0) 0 Bonus (284) 284 TOTAL SCORE: 4502 Bonus ------- High Alert Combat Kills 224 Follower Combat Kills 60 Cogmind --------- Core Integrity 0/550 Matter 61/300 Energy 100/100 System Corruption 7% Temperature Cool (9) Movement Core (200) Ox3 Location -8/Storage Parts ------- > --- POWER (1) -------- (None) > --- PROPULSION (4) --- (None) > --- UTILITY (4) ------ Medium Storage Unit Hacking Suite > --- WEAPON (2) ------- (None) > --- INVENTORY (10) --- Deuterium Engine Nuclear Core Light Nuclear Core Aluminum Leg Aluminum Leg Hardlight Generator Small Laser Mini Grenade Launcher Peak State ------------ > --- POWER ------------ Light Nuclear Core > --- PROPULSION ------- Aluminum Leg Aluminum Leg Aluminum Leg Aluminum Leg > --- UTILITY ---------- Improved Heat Sink Medium Storage Unit Improved Signal Interpreter Hacking Suite > --- WEAPON ----------- Advanced Assault Cannon Advanced Assault Cannon > --- INVENTORY -------- Deuterium Engine Nuclear Core Light Nuclear Core Aluminum Leg Aluminum Leg Hardlight Generator Small Laser Advanced Assault Cannon Mini Grenade Launcher [Rating: 27] Favorites ----------- Power Ion Engine Engine Ion Engine Power Core Light Nuclear Core Propulsion Aluminum Leg Leg Aluminum Leg Utility Signal Interpreter Device Improved Heat Sink Storage Medium Storage Unit Processor Signal Interpreter Hackware Hacking Suite Weapon EM Pulse Gun Energy Gun EM Pulse Gun Ballistic Gun Light Assault Rifle Ballistic Cannon Advanced Assault Cannon Launcher Grenade Launcher Build | -11 -10 -10 -10 -9 -8 -8 ------- Run | Yrd Mat Min Exi Min Mat Sto Slots Evolved 4 | . . . . . 4 . Power . | . . . . . . . Propulsion 2 | . . . . . 2 . Utility 2 | . . . . . 2 . Weapon . | . . . . . . . Parts Attached 44 | 6 4 1 3 1 25 4 Power 6 | 1 1 . . . 4 . Engine 3 | 1 1 . . . 1 . Core 3 | . . . . . 3 . Reactor . | . . . . . . . Propulsion 14 | 2 . . 2 1 8 1 Treads . | . . . . . . . Leg 14 | 2 . . 2 1 8 1 Wheel . | . . . . . . . Hover . | . . . . . . . Flight . | . . . . . . . Utility 11 | 1 2 . 1 . 7 . Device 4 | . . . . . 4 . Storage 3 | 1 1 . 1 . . . Processor 2 | . 1 . . . 1 . Hackware 2 | . . . . . 2 . Protection . | . . . . . . . Artifact . | . . . . . . . Weapon 13 | 2 1 1 . . 6 3 Energy Gun 4 | 1 1 . . . 2 . Energy Cannon . | . . . . . . . Ballistic Gun 1 | 1 . . . . . . Ballistic Cannon 3 | . . . . . . 3 Launcher 5 | . . 1 . . 4 . Special Weapon . | . . . . . . . Impact Weapon . | . . . . . . . Slashing Weapon . | . . . . . . . Piercing Weapon . | . . . . . . . Special Melee Weapon . | . . . . . . . Unidentified Prototypes . | . . . . . . . Parts Lost 19 | . . . . . 10 9 Power 1 | . . . . . . 1 Propulsion 7 | . . . . . 3 4 Utility 4 | . . . . . 2 2 Weapon 7 | . . . . . 5 2 Highest Loss Streak 7 | . . . . . 5 7 To Critical Strikes . | . . . . . . . Average Backups 8 | 2 7 8 8 9 8 8 Power 1 | . 1 1 1 2 2 3 Propulsion 3 | 1 3 4 3 4 2 1 Utility 1 | . . 1 1 1 . 1 Weapon 1 | . 1 2 2 2 1 3 Tool/Special . | . . . . . . . Unused Backups 12 | . 3 . 1 . 8 . Power 4 | . . . 1 . 3 . Propulsion 5 | . 2 . . . 3 . Utility 1 | . 1 . . . . . Weapon 2 | . . . . . 2 . Tool/Special . | . . . . . . . Average Slot Usage (%) 97 | . 96 100 99 100 96 79 Engine 10 | . 14 14 13 14 3 . Core 1 | . . . . . 5 7 Leg 29 | . 28 28 28 28 35 24 Device 1 | . . . . . 7 7 Storage 12 | . 14 14 14 14 9 9 Processor 12 | . 10 14 14 14 9 6 Hackware 2 | . . . . . 9 9 Energy Gun 13 | . 24 17 14 14 5 . Launcher 10 | . . 10 14 14 11 6 Peak Build Rating 27 | 6 7 7 8 8 24 27 Average Rating 10 | 5 6 6 7 8 19 21 On Entrance 8 | . 6 7 7 8 8 23 Avg Prop Armor Cover (%) . | . . . . . . . Naked Turns . | . . . . . . . Heaviest Build 37 | 10 13 15 20 20 37 28 Greatest Support 40 | 20 20 20 20 20 40 40 Greatest Overweight (x) 9 | . . . . . 1 9 Average Overweight (x) . | . . . . . . . Largest Inventory Capacity 25 | 8 25 8 10 10 10 10 Average Capacity 9 | 7 8 8 8 10 10 10 Most Carried 10 | 4 8 8 9 10 10 10 Average Carried 8 | 2 7 8 8 9 8 8 Final Capacity 10 | 8 8 8 10 10 10 10 Final Carried 10 | 4 8 8 9 10 10 8 Class Distribution -------------------- 73% | Mutant 21% | Scavenger-Mutant 4% | Hacker-Mutant Dominant Class ---------------- Mutant | -10/Materials Mutant | -10/Mines Mutant | -10/Exiles Mutant | -9/Mines Scavenger-Mutant | -8/Materials Scavenger-Mutant | -8/Storage Resources | -11 -10 -10 -10 -9 -8 -8 ----------- Run | Yrd Mat Min Exi Min Mat Sto Matter Collected 1208 | 255 45 5 . 148 688 67 Remotely . | . . . . . . . Salvage Created 1732 | . 199 . . 128 1338 67 Parts 105 | . 12 . . 11 79 3 Haulers Intercepted 1 | . . . . . 1 . Recyclers Shooed 1 | . 1 . . . . . Parts Field Recycled . | . . . . . . . Retrieved Matter . | . . . . . . . Parts Self-Destructed . | . . . . . . . Prevented . | . . . . . . . Parts Restored . | . . . . . . . Kills | -11 -10 -10 -10 -9 -8 -8 ------- Run | Yrd Mat Min Exi Min Mat Sto Combat Hostiles Destroyed 47 | . 3 . . 13 29 2 Guns 12 | . 2 . . 2 8 . Cannons 1 | . . . . . . 1 AOE 34 | . 1 . . 11 21 1 Classes Destroyed 12 | . 4 . . 3 5 . Worker 9 | . 1 . . . 8 . Builder 6 | . . . . 1 5 . Hauler 1 | . . . . . 1 . Recycler 1 | . 1 . . . . . Operator 1 | . . . . . 1 . Watcher 6 | . 2 . . . 4 . Swarmer 11 | . 3 . . 4 4 . Grunt 18 | . . . . 1 17 . Brawler 2 | . . . . . 1 1 Sentry 7 | . . . . . 6 1 Hunter 1 | . . . . . 1 . Assembled 8 | . . . . 8 . . Best Kill Streak 11 | . 7 . . 4 11 1 Combat Bots Only 7 | . 3 . . 4 7 1 Max Kills in Single Turn 3 | . 2 . . 3 3 1 Gunslinging 1 | . 1 . . . . . Exploded 3 | . 1 . . 3 2 1 Melee . | . . . . . . . Uniques/NPCs Destroyed . | . . . . . . . Combat | -11 -10 -10 -10 -9 -8 -8 -------- Run | Yrd Mat Min Exi Min Mat Sto Hostile Shots Fired 264 | . 13 . . 20 141 90 Missed 85 | . 2 . . 13 43 27 Hits 179 | . 11 . . 7 98 63 Melee 17 | . . . . 1 . 16 Projectile 162 | . 11 . . 6 98 47 Critical Strikes 8 | . . . . . 4 4 Damage Taken 2609 | . 67 . . 87 1555 900 Core 568 | . . . . 11 282 275 Absorbed by Shields 88 | . . . . . 88 . Ignored by Resistances 704 | . 22 . . 26 399 257 Core Remaining (%) 97 | 100 . . . 95 . . Volleys Fired 103 | . 6 . . 17 71 9 Largest 2 | . 2 . . 2 2 2 Hottest 80 | . 80 . . 70 80 80 Shots Fired 174 | . 12 . . 27 117 18 Gun 83 | . 12 . . 17 54 . Cannon 12 | . . . . . . 12 Launcher 79 | . . . . 10 63 6 Special . | . . . . . . . Kinetic 12 | . . . . . . 12 Thermal 25 | . 6 . . . 19 . Explosive 55 | . . . . 10 42 3 Electromagnetic 82 | . 6 . . 17 56 3 Robot Hit Streak 27 | . 3 . . 7 27 8 Robot Miss Streak 4 | . 2 . . 4 3 1 Penetration Max . | . . . . . . . Secondary Targets 4 | . 1 . . . 3 . Max Gunslinging Chain 1 | . 1 . . . 1 . Shots Hit Robots 134 | . 7 . . 18 94 15 Core Hits 125 | . 7 . . 21 93 4 Critical Kills . | . . . . . . . Critical Parts Destroyed . | . . . . . . . Critical Strikes 1 | . . . . . 1 . Corrupt 1 | . . . . . 1 . Melee Attacks . | . . . . . . . Impact . | . . . . . . . Slashing . | . . . . . . . Piercing . | . . . . . . . Sneak Attacks . | . . . . . . . Combat Hostiles . | . . . . . . . Follow-up Attacks . | . . . . . . . Damage Inflicted 5585 | . 175 25 . 917 3927 541 Guns 798 | . 108 . . 112 578 . Cannons 244 | . . . . . . 244 Explosions 4481 | . 65 . . 783 3336 297 Melee . | . . . . . . . Ramming 62 | . 2 25 . 22 13 . Kinetic 244 | . . . . . . 244 Thermal 353 | . 98 . . . 255 . Explosive 3403 | . . . . 783 2440 180 Electromagnetic 1523 | . 75 . . 112 1219 117 Impact . | . . . . . . . Slashing . | . . . . . . . Piercing . | . . . . . . . Highest Corruption 7 | . . . . . 6 7 Average Corruption 5 | . . . . . 5 6 Corruption Purged . | . . . . . . . Corruption Blocked . | . . . . . . . Effects 24 | . . . . . 18 6 Message Errors 4 | . . . . . 2 2 Matter Fused 7 | . . . . . 5 2 Heat Flow Errors 2 | . . . . . 1 1 Energy Discharges 3 | . . . . . 3 . Data Loss (minor) 3 | . . . . . 3 . Data Loss (major) 2 | . . . . . 1 1 Misfires 1 | . . . . . 1 . Alerts 1 | . . . . . 1 . Weapon Failures 1 | . . . . . 1 . Overload Shots . | . . . . . . . Overflow Damage 195 | . . . . 43 131 21 Projectiles 21 | . . . . . . 21 Explosions 174 | . . . . 43 131 . Melee . | . . . . . . . Knockbacks 3 | . . 1 . 2 . . Impact 3 | . . 1 . 2 . . Kinetic . | . . . . . . . Secondary . | . . . . . . . Self-Inflicted Damage 299 | . . . . 16 199 84 Shots 16 | . . . . 1 9 6 Rammed . | . . . . . . . Targets Rammed 11 | . 1 3 . 4 3 . Kicked 11 | . 1 3 . 4 3 . Crushed . | . . . . . . . Highest Temperature 263 | . 108 . . 45 263 200 Average Temperature 50 | . 56 . . 15 57 112 Received Heat Transfer 850 | . . . . 12 622 216 Siege Activations . | . . . . . . . Martial Activations . | . . . . . . . Shielding Activations . | . . . . . . . Robots Disrupted . | . . . . . . . Combat Hostiles . | . . . . . . . Robots Corrupted . | . . . . . . . Combat Hostiles . | . . . . . . . Parts Fried . | . . . . . . . Impact Corruptions . | . . . . . . . Robots Melted . | . . . . . . . Combat Hostiles . | . . . . . . . Parts Melted 1 | . . . . . 1 . Heat Transferred 675 | . 175 . . . 500 . Parts Sabotaged . | . . . . . . . Parts Stolen . | . . . . . . . Parts Stripped . | . . . . . . . Power Chain Reactions 3 | . 1 . . . 2 . Alert | -11 -10 -10 -10 -9 -8 -8 ------- Run | Yrd Mat Min Exi Min Mat Sto Maximum Alert Level 3 | . . . . . 3 1 Low Security (%) 71 | 100 100 100 . 100 27 . Level 1 13 | . . . . . 21 100 Level 2 5 | . . . . . 17 . Level 3 10 | . . . . . 33 . Level 4 . | . . . . . . . Level 5 . | . . . . . . . High Security . | . . . . . . . Max Security . | . . . . . . . Peak Influence 849 | . 98 18 . 103 849 310 Initial 294 | . . 18 . . . 294 Average 159 | . 10 . . 21 450 270 Influence Increases 1836 | . 103 . . 201 1424 108 Destroy 0b10 Robot/C 820 | . 60 . . 120 600 40 Destroy 0b10 Robot/NC 125 | . 20 . . 10 95 . Destroy Leader 194 | . 14 . . 20 150 10 Allied During Kill 6 | . . . . 3 3 . Successful Hack 5 | . 5 . . . . . Disable Machine 108 | . . . . . 99 9 Destroy Structure 398 | . 4 . . 48 327 19 Lose Combat Pursuer 180 | . . . . . 150 30 Influence Decreases 1624 | . 45 58 . 201 605 715 Entered New Map 565 | . . 40 . . . 525 Time Decay 829 | . 45 18 . 201 465 100 Lost Part 190 | . . . . . 100 90 Lost Ally 40 | . . . . . 40 . Squads Dispatched 8 | . 1 . . 1 6 . Investigation 2 | . 1 . . . 1 . Extermination . | . . . . . . . Reinforcement 4 | . . . . 1 3 . Assault 1 | . . . . . 1 . Garrison 1 | . . . . . 1 . Intercept . | . . . . . . . Searches Triggered . | . . . . . . . Construction Impeded 3 | . . . . 1 2 . Haulers Reinforced . | . . . . . . . Active Scanning Responses . | . . . . . . . Cargo Convoy Interrupts . | . . . . . . . Stealth | -11 -10 -10 -10 -9 -8 -8 --------- Run | Yrd Mat Min Exi Min Mat Sto Distress Signals 7 | . 1 . . . 5 1 Communications Jammed . | . . . . . . . Distress Signals . | . . . . . . . Times Spotted 76 | . 7 . . 14 46 9 Peak Tracking Total 9 | . 5 . . 4 9 4 Tactical Retreats 7 | . . . . . 5 2 Traps | -11 -10 -10 -10 -9 -8 -8 ------- Run | Yrd Mat Min Exi Min Mat Sto Traps Triggered 3 | . 1 . . . 1 1 Indirectly . | . . . . . . . Trap Hack Attempts . | . . . . . . . Triggered . | . . . . . . . Disarmed . | . . . . . . . Reprogrammed . | . . . . . . . Reused . | . . . . . . . Traps Extracted . | . . . . . . . Installed . | . . . . . . . Triggered . | . . . . . . . Machines | -11 -10 -10 -10 -9 -8 -8 ---------- Run | Yrd Mat Min Exi Min Mat Sto Machines Disabled 12 | . . . . . 11 1 Max in Single Turn 3 | . . . . . 3 1 Garrison Access 1 | . . . . . 1 . Machines Repaired . | . . . . . . . Machines Dismantled . | . . . . . . . Machines Sabotaged . | . . . . . . . Overloaded Fab Kills . | . . . . . . . Hacking | -11 -10 -10 -10 -9 -8 -8 --------- Run | Yrd Mat Min Exi Min Mat Sto Machines Accessed 13 | . 6 . 4 . 3 . Terminals 7 | . 5 . . . 2 . Fabricators . | . . . . . . . Repair Stations . | . . . . . . . Recycling Units 1 | . 1 . . . . . Scanalyzers . | . . . . . . . Garrison Access 1 | . . . . . 1 . Total Hacks 73 | . 18 . 49 . 6 . Successful 61 | . 9 . 49 . 3 . Failed 12 | . 9 . . . 3 . Catastrophic 1 | . 1 . . . . . Database Lockouts . | . . . . . . . Manual 14 | . 6 . 5 . 3 . Terminals 21 | . 17 . . . 4 . Fabricators . | . . . . . . . Repair Stations . | . . . . . . . Recycling Units 1 | . 1 . . . . . Scanalyzers . | . . . . . . . Garrison Access 2 | . . . . . 2 . Terminal Hacks 58 | . 8 . 49 . 1 . Record 50 | . 1 . 49 . . . Alert Level 1 | . 1 . . . . . Locate Traps 1 | . 1 . . . . . Recall Investigation 2 | . 1 . . . 1 . Zone Layout 4 | . 4 . . . . . Fabricator Hacks . | . . . . . . . Repair Station Hacks . | . . . . . . . Recycling Unit Hacks 1 | . 1 . . . . . Retrieve Components 1 | . 1 . . . . . Scanalyzer . | . . . . . . . Garrison Access Hacks 2 | . . . . . 2 . Unlock Access 1 | . . . . . 1 . Seal Access 1 | . . . . . 1 . Unauthorized Hacks . | . . . . . . . Terminals . | . . . . . . . Fabricators . | . . . . . . . Repair Stations . | . . . . . . . Recycling Units . | . . . . . . . Scanalyzers . | . . . . . . . Garrison Access . | . . . . . . . Data Cores Recovered 1 | . . . . . 1 . Used . | . . . . . . . Hacking Detections 7 | . 5 . . . 2 . Full Trace Events 3 | . 2 . . . 1 . Feedback Events . | . . . . . . . Feedback Blocked . | . . . . . . . Robot Schematics Acquired . | . . . . . . . Robots Built . | . . . . . . . Authchips . | . . . . . . . Time . | . . . . . . . Total Robot Build Rating . | . . . . . . . Part Schematics Acquired . | . . . . . . . Parts Built . | . . . . . . . Authchips . | . . . . . . . Time . | . . . . . . . Total Part Build Rating . | . . . . . . . Part Studies Acquired . | . . . . . . . Parts Repaired . | . . . . . . . Time . | . . . . . . . Parts Recycled . | . . . . . . . Recycled Matter . | . . . . . . . Retrieved Matter . | . . . . . . . Retrieved Components 10 | . 10 . . . . . Parts Scanalyzed . | . . . . . . . Part Schematics Acquired . | . . . . . . . Parts Damaged . | . . . . . . . Bothacking | -11 -10 -10 -10 -9 -8 -8 ------------ Run | Yrd Mat Min Exi Min Mat Sto Used RIF Installer . | . . . . . . . Robots Hacked . | . . . . . . . Non-combat . | . . . . . . . Combat . | . . . . . . . Robot Hacks Applied . | . . . . . . . Relay Couplers Released . | . . . . . . . Fabnet Peak Effective % . | . . . . . . . Robots Rewired . | . . . . . . . Allies Hacked . | . . . . . . . Hacks Repelled . | . . . . . . . Allies | -11 -10 -10 -10 -9 -8 -8 -------- Run | Yrd Mat Min Exi Min Mat Sto Total Allies 3 | . . . . 3 . . Largest Group 3 | . . . . 3 3 . Highest-Rated Group 40 | . . . . 40 40 . Highest-Rated Ally 16 | . . . . 16 16 . Total Orders 4 | . . . . 3 1 . FOLLOW 2 | . . . . 2 . . GUARD 2 | . . . . 1 1 . Ally Attacks 20 | . . . . 4 16 . Total Damage 577 | . . . . 63 514 . Kills 4 | . . . . 2 2 . Allies Corrupted . | . . . . . . . Allies Melted . | . . . . . . . Intel | -11 -10 -10 -10 -9 -8 -8 ------- Run | Yrd Mat Min Exi Min Mat Sto Active Infowar (turns) 277 | . . . . . 277 . Structural 277 | . . . . . 277 . Robot Analysis Total . | . . . . . . . Derelict Logs Recovered 2 | . . 1 . 1 . . Drone Launches . | . . . . . . . Drone Recoveries . | . . . . . . . Exploration | -11 -10 -10 -10 -9 -8 -8 ------------- Run | Yrd Mat Min Exi Min Mat Sto Turns Passed 4412 | 80 651 518 1223 781 946 213 Spaces Moved 3264 | 58 508 415 1000 606 567 110 Core 4 | 3 . . . . . 1 Treads . | . . . . . . . Legs 3260 | 55 508 415 1000 606 567 109 Wheels . | . . . . . . . Hover . | . . . . . . . Flight . | . . . . . . . Fastest Speed 50 | 50 120 120 120 120 120 120 Average Speed 120 | 116 120 120 120 120 120 127 Slowest Speed 500 | 120 120 120 120 120 190 500 Overloaded Moves . | . . . . . . . Propulsion Burnouts . | . . . . . . . Robots Hopped . | . . . . . . . Potential Cave-ins 5 | . . . . . 5 . Cave-ins Triggered 1 | . . . . . 1 . Exploration Rate (%) 58 | 6 83 75 93 92 37 22 Regions Visited 6 Branch Regions 4 Pre-discovered Areas 2 | . . 1 1 . . . Known Exits Taken 5 | . 1 1 1 1 1 . Unknown Exits Taken 1 | 1 . . . . . . Scrap Searched 4 | . . 1 . 3 . . Spaces Dug . | . . . . . . . Terrain Destroyed 461 | . 4 . . 68 369 20 Melee . | . . . . . . . Projectile 1 | . . . . . . 1 AOE 460 | . 4 . . 68 369 19 Terrain Rammed . | . . . . . . . Walls Destroyed . | . . . . . . . Machines Disabled . | . . . . . . . Actions | -11 -10 -10 -10 -9 -8 -8 --------- Run | Yrd Mat Min Exi Min Mat Sto Total 3570 | 67 539 434 1024 632 709 165 Wait 85 | . 8 15 11 3 8 40 Move 3258 | 57 507 414 999 605 566 110 Hop . | . . . . . . . Pick Up 26 | 4 7 . 2 1 12 . Fast Attach 19 | 6 2 1 1 . 9 . Attach 12 | . . . . . 8 4 Detach 5 | . 1 . . . 3 1 Swap 20 | . 2 . 3 1 13 1 Drop 28 | . 5 1 5 1 16 . Fire 103 | . 6 . . 17 71 9 Melee . | . . . . . . . Ram . | . . . . . . . Kick 11 | . 1 3 . 4 3 . Crush . | . . . . . . . Escape Stasis . | . . . . . . . Rewire 3 | . . . 3 . . . Trap . | . . . . . . . Miscellaneous . | . . . . . . . Route ------- -11/Scrapyard -10/Materials (discovered 3 exits: [*Mat x2] / *Min) -10/Mines -10/Exiles (discovered 2 exits: *Min x2) -9/Mines (discovered 2 exits: *Mat x2) -8/Materials (discovered 3 exits: *Fac x2 / *Sto) -8/Storage History --------- Turn | Location | Event 9 | -11/Scrapyard | Discovered new exit (range 16) 81 | -11/Scrapyard | Entered Materials 82 | -10/Materials | Met a group of wandering Federalists 227 | -10/Materials | Discovered new exit (range 12) 316 | -10/Materials | Build established: Mutant 559 | -10/Materials | Discovered new exit (range 4) 710 | -10/Materials | Discovered new exit (range 9) 731 | -10/Materials | Identified exit to Mines 732 | -10/Materials | Entered Mines 757 | -10/Mines | Met a Derelict bent on vengeance 864 | -10/Mines | YI-UF0 nonchalantly dropped a Grenade Launcher on the ground 901 | -10/Mines | A weapon hastily lodged in a ceiling crevice suddenly fell to the ground 1206 | -10/Mines | Learned location of Storage (-8) 1221 | -10/Mines | Learned 8 Materials zone layouts 1241 | -10/Mines | Deemed a non-threat by the Exiles lab entrance 1243 | -10/Mines | Discovered new exit (range 5) 1247 | -10/Mines | Identified exit to Exiles 1250 | -10/Mines | Entered Exiles 1311 | -10/Exiles | Discovered new exit (range 15) 1355 | -10/Exiles | Met 8R-AWN 1380 | -10/Exiles | Met EX-HEX 1458 | -10/Exiles | Met EX-BIN 1648 | -10/Exiles | Met EX-DEC 1665 | -10/Exiles | Learned location of Zion (-6) 1744 | -10/Exiles | Discovered new exit (range 14) 1938 | -10/Exiles | Visited The Gauntlet 2317 | -10/Exiles | Identified exit to Mines 2473 | -10/Exiles | Entered Mines 2499 | -9/Mines | Discovered new exit (range 12) 2567 | -9/Mines | Assembled infested the area 2806 | -9/Mines | Assisted by bots powering up and referring to "LRC-V3" 2959 | -9/Mines | Learned Materials emergency access door positions 2961 | -9/Mines | Discovered new exit (range 11) 2975 | -9/Mines | Received a Rocket Launcher from a helpful Derelict 3185 | -9/Mines | Identified exit to Materials 3254 | -9/Mines | Entered Materials 3254 | -8/Materials | Accompanied by 3 allies 3254 | -8/Materials | Evolved 4 slots: Propulsion x2, Utility x2 3255 | -8/Materials | Identified exit to Factory 3277 | -8/Materials | Garrison activated, responded to threat 3303 | -8/Materials | Identified exit to Garrison 3568 | -8/Materials | Build established: Scavenger-Mutant 3679 | -8/Materials | Crushed by falling debris 3737 | -8/Materials | Lost 5 parts (2n1u2w) 3755 | -8/Materials | Destroyed 7 combat bots 3848 | -8/Materials | Discovered new exit (range 16) 4054 | -8/Materials | First assault squad dispatched 4086 | -8/Materials | Identified exit to Storage 4133 | -8/Materials | Core integrity fell below 50% 4196 | -8/Materials | Discovered exit to Factory (range 16) 4200 | -8/Materials | Entered Storage 4386 | -8/Storage | Core integrity fell below 20% 4413 | -8/Storage | Destroyed by G-47 Trooper with Particle Gun Last Messages --------------- 04388_ Penetrated by Slug. 04388_ Imp. Heat Sink destroyed. 04388_ L-31 Rogue destroyed. 04391_ R-06 Scavenger collects Imp. Aluminum Leg. 04392_ Slug penetrates Wall. 04394_ NPY4YGSKOS9X|OZAEE U ,88/ 04396_ R-06 Scavenger collects Imp. Ion Engine. 04396_ U-05 Engineer lays Concrete. 04398_ Slug penetrates Wall. 04398_ R-06 Scavenger collects Imp. Aluminum Leg. 04399_ U-05 Engineer lays Concrete. 04400_ K-01 Serf collects debris. 04404_ Slug penetrates R-06 Scavenger. 04404_ R-06 Scavenger destroyed. 04407_ Critical hit (Burn: +37). 04409_ R-06 Scavenger collects Imp. Aluminum Leg. 04410_ Slug penetrates Wall. Map ----- +----------------------------------------------------+ | ????????????????????????????????? | | ????????????????????????????????? | | ????????????????????????????????? | | ????????????????????????????????? | | ????????????????????????????????? | | ????????????????????????????????? | | ????????????????????????????????? | | ????????????????????????????????? | | ????????????????????????????????? | | ????????????????????????????????? | | ????????????????????????????????? | | ????????????????????????????????? | | ????????????????????????????????? | | ????????????????????????????????? | | ????????????????????????????????? | | ???#????????????????????????????? | | ???# ???????????????????????????? | | ???# ???????????????????????????? | | ???# #####??????????????????????? | | ???# ??????????????????????? | | ???# ??????????????????????? | | ???# ??????????????????????? | | ???# #??????????????????????? | | ???# #??????????????????????? | | ???#* % #??????????????????????? | | ??##! %@##################+##??? | | ?#""r=% h / #??? | | ?#"Y!= % # #??? | | ?#""! g % # #??? | | ?### # #??? | | ???# u + """"" #??? | | ???# # """"" #??? | | ???# ####+###+# """"" #??? | | ???# #??? ??# #??? | | ???# #????"""?#########/#??? | | ???# #????????????????# #??? | | ???# #????????????????# #### | | ???# #????????????????# ## | | ???# #????????????????# # # | | ???# #????????????????# #### | | ???# #????????????????# + | | ???# #????????????????# # | | ???# #???????########## # | | ???# #????#### ^ | | ???# ######T## #####+## | | ???# # [# # | | ???# + # | | ???# ########### ###### | | ???########?????????# = #????? | | ????????????????????#! #????? | +----------------------------------------------------+ Best States ------------- Heat Dissipation 45 Energy Generation 14 Energy Capacity 275 Matter Stores 300 Matter Capacity 300 Sight Range 16 Terrain Scan Density 10 Resistance: KI 20 Resistance: TH 20 Resistance: EX 20 Resistance: EM 20 Resistance: I 20 Resistance: S 20 Resistance: P 20 Evasion (%) 55 Offensive Hacking 20 Defensive Hacking 10 Item Schematics ----------------- None Robot Schematics ------------------ None Fabricated ------------ Nothing Repaired ---------- Nothing Studied --------- None Alien Tech Used ----------------- None Achievements -------------- Construction Begets Destruction Ghost 'Em I Survived The Infestation Throw Away The Key Challenges ------------ None Game ------ Seed MeleeMasterSpear Manual? 0 Play Time 00:56:05 Cumulative 13.0 hours Start 2026.01.12 @ 12:19:36 End 2026.01.12 @ 13:14:24 Sessions 1 Manual Loads 0 Difficulty Adventurer Special Mode None Game No. 11 Rogue 0 Adventurer 11 Explorer 0 Win Type - Total 0 Types 0/0/0/0/0/0/0/0/0/0 Lore% 9 Gallery% 12 Achievement% 14 Wizard Run 0 Options --------- Layout 2 ASCII 0 Keyboard 0 Movement Arrows Keybinds 0 Fullscreen 1 Font 20/SmallcapsGlow Map View 25x24 Zoom Use 27% Tactical HUD 1 Map Filters NONE Filters NONE Steam 1 RUN: 5c44caec-f96f-4a94-85f0-31deac7f1364